{"text_format":"1","workbook":"xlsx","n_sheets":6,"sheets":["Worksheet","pricing","Schedule-PDF","Estimate","Work Area","Leaner-Hanger"],"not_rendered":{"charts":0,"images":2,"macros":1,"external_links":0,"defined_names":6,"comments":1,"pivot_tables":0},"unopened":[],"bounds":{"document_bytes":16777216,"sheet_cells":100000,"rows_first":2000,"rows_last":500,"rows_between":2000,"halvings":0,"cell_chars":16384,"cell_head_chars":4096},"cells_cut":0,"cells_raw":0,"read":"whole","date_system":"1900"}

{"sheet":"Worksheet","index":0,"n_rows":22,"n_cols":5,"rows_kept":22,"cut":false,"hidden":false,"merged":[[3,1,3,5],[21,2,23,4]]}
[]
[]
[]
[null,"End User Worksheet - Disaster Debris"]
[]
[null,null,"Households",{"$f":"10000/3","v":3333.3333333333335},"If household data is not available, please divide the population estimate for the jurisdiction by 3 to estimate the number of households."]
[null,null,"Storm Category",3,"Please choose Hurricane Category 1-5"]
[null,null,"Vegetative Cover","Heavy","Please refer to the End User Survey for this value."]
[null,null,"Commercial/Industrial Density","Medium","Please refer to the End User Survey for this value."]
[null,null,"Storm Precipitation Characteristic","Medium","For a \"worst case scenario\" estimate, please choose \"heavy\""]
[]
[]
[]
[null,null,"Demolition of non-RACM Structures",100,"Please enter values in multiples of 100"]
[null,null,"Demolition of RACM Structures",100,"Please enter values in multiples of 100"]
[null,null,"White Goods",100,"Please enter values in multiples of 100"]
[null,null,"Used Electronics",50,"Please enter values in multiples of 50"]
[null,null,"HHW",100,"Please enter values in multiples of 100"]
[null,null,"Vehicle and Vessel Removals",50,"Please enter values in multiples of 50"]
[null,null,"Animal Carcasses",100,"Please enter values in multiples of 100"]
[]
[null,null,"Enter very conservative estimates for the items listed above.  If a listed item is not relevant for the end user enter 0.  For example, if the end user does not have a high concentration of water vessels then enter 0. All estimates entered above should be based on the applicability to the end user.  If the end user determines that the multiples referenced above are not applicable to the end user then enter a conservative estimate."]

{"sheet":"pricing","index":1,"n_rows":88,"n_cols":6,"rows_kept":88,"cut":false,"hidden":false,"merged":[[10,3,12,3],[10,4,12,4],[10,5,12,5],[11,1,12,2],[2,1,2,5],[6,3,8,3],[6,4,8,4],[6,5,8,5],[7,1,8,2],[14,3,16,3],[14,4,16,4],[14,5,16,5],[15,1,16,2],[18,3,20,3],[18,4,20,4],[18,5,20,5],[19,1,20,2],[22,3,24,3],[22,4,24,4],[22,5,24,5],[23,1,24,2],[26,3,28,3],[26,4,28,4],[26,5,28,5],[27,1,28,2],[30,3,32,3],[30,4,32,4],[30,5,32,5],[31,1,32,2],[34,3,36,3],[34,4,36,4],[34,5,36,5],[35,1,36,2],[39,1,39,5],[41,1,41,5],[45,3,47,3],[45,4,47,4],[45,5,47,5],[46,1,47,2],[54,3,56,3],[54,4,56,4],[54,5,56,5],[55,1,56,2],[60,3,62,3],[60,4,62,4],[60,5,62,5],[61,1,62,2],[64,3,66,3],[64,4,66,4],[64,5,66,5],[65,1,66,2],[68,3,70,3],[68,4,70,4],[68,5,70,5],[69,1,70,2],[85,1,85,5],[72,3,74,3],[72,4,74,4],[72,5,74,5],[73,1,74,2],[76,3,78,3],[76,4,78,4],[76,5,78,5],[77,1,78,2]]}
[]
[]
[null,"SCHEDULE 1 - UNIT RATE PRICE SCHEDULE"]
[]
[null,null,null,"To be Completed By Vendor ▼","To be Completed By End User ▼"]
[]
[null,2,"ROW Vegetative Debris Removal (Collect & Haul)","$ Per Cubic Yard","Estimated CY","Total"]
[null,"Work consists of all labor, equipment, fuel, and associated costs necessary for the collection and transportation of eligible vegetative debris on the ROW to an approved DMS or other designated disposal facility."]
[]
[null,null,null,null,{"$f":"Estimate!I25","v":142500},{"$f":"D10*E10","v":0}]
[null,3,"ROW C&D Debris Removal (Collect & Haul)","$ Per Cubic Yard","Estimated CY","Total"]
[null,"Work consists of all labor, equipment, fuel, and associated costs necessary for the collection and transportation of eligible C&D debris on the ROW to an approved disposal facility."]
[]
[null,null,null,null,{"$f":"Estimate!I26","v":47500},{"$f":"D14*E14","v":0}]
[null,4,"Demolition, Removal, Transport, and Demolition of Eligible Non-RACM Structures","$ Per Cubic Yard","Estimated CY","Total"]
[null,"Work consists of all labor, equipment, fuel, and associated costs necessary to demolish, remove, transport, and dipose of eligible non-RACM structures on private property."]
[]
[null,null,null,null,{"$f":"Worksheet!D14","v":100},{"$f":"D18*E18","v":0}]
[null,5,"Demolition, Removal, Transport, and Demolition of Eligible RACM Structures","$ Per Cubic Yard","Estimated CY","Total"]
[null,"Work consists of all labor, equipment, fuel, and associated costs necessary to demolish, remove, transport, and dipose of eligible RACM structures on private property."]
[]
[null,null,null,null,{"$f":"Worksheet!D15","v":100},{"$f":"D22*E22","v":0}]
[null,6,"DMS Management and Operations","$ Per Cubic Yard","Estimated CY","Total"]
[null,"Work consists of all labor, equipment, fuel, and associated costs necessary for the management and operation of DMS for acceptance, management, segregation, and staging of disaster related debris. "]
[]
[null,null,null,null,{"$f":"Estimate!I27","v":190000},{"$f":"D26*E26","v":0}]
[null,7,"Reduction of Debris Through Grinding","$ Per Cubic Yard","Estimated CY","Total"]
[null,"Work consists of all labor, equipment, fuel, and miscellaneous costs necessary to reduce disaster generated debris through grinding. "]
[]
[null,null,null,null,{"$f":"0.75*E26","v":142500},{"$f":"D30*E30","v":0}]
[null,8,"Reduction of Debris Through Air Curtain Incineration","$ Per Cubic Yard","Estimated CY","Total"]
[null,"Work consists of all labor, equipment, fuel, and miscellaneous costs necessary to reduce disaster generated debris through air curtain incineration. "]
[]
[null,null,null,null,{"$f":"0.25*E26","v":47500},{"$f":"D34*E34","v":0}]
[null,9,"Haul-out of Reduced Debris to Final Disposal Site","$ Per Cubic Yard","Estimated CY","Total"]
[null,"Work consists of all labor, equipment, fuel, and associated costs necessary for loading and transporting reduced debris at an approved DMS to a final disposal facility."]
[]
[null,null,null,null,{"$f":"(0.25*E30)+(0.03*E34)","v":37050},{"$f":"D38*E38","v":0}]
[]
[null,"Notes:\n[Enter notes as applicable or Erase]"]
[]
[null,"SCHEDULE 1 - UNIT RATE PRICE SCHEDULE (Continued)"]
[]
[null,null,null,"To be Completed By Vendor ▼","To be Completed By End User ▼"]
[]
[null,10,"Removal of Eligible Hazardous Leaning Trees and Hanging Limbs","$ Per Tree","Estimated Trees","Total"]
[null,"Work consists of all labor, equipment, fuel, and associated costs necessary for the removal of eligible hazardous leaning or hanging limbs and placement of them on the ROW for haul-off.  "]
[]
[null,null,"6 inch to 12 inch diameter",null,{"$f":"INT('Leaner-Hanger'!D43*Worksheet!D6)","v":9},{"$f":"D49*E49","v":0}]
[null,null,"13 inch to 24 inch diameter",null,{"$f":"INT('Leaner-Hanger'!D44*Worksheet!$D$6)","v":17},0]
[null,null,"25 inch to 36 inch diameter",null,{"$f":"INT('Leaner-Hanger'!D45*Worksheet!$D$6)","v":8},0]
[null,null,"37 inch to 48 inch diameter",null,{"$f":"INT('Leaner-Hanger'!D46*Worksheet!$D$6)","v":1},0]
[null,null,"49 inch and larger diameter",null,{"$f":"INT('Leaner-Hanger'!D47*Worksheet!$D$6)","v":0},0]
[null,null,"Hanger Removal (2\" or greater at the break and price per Tree)",null,{"$f":"INT('Leaner-Hanger'!D48*Worksheet!$D$6)","v":1414},0]
[null,11,"Removal of Eligible Hazardous Stumps","$ Per Stump","Estimated Stumps","Total"]
[null,"Work consists of all labor, equipment, fuel, and associated costs necessary for the removal of eligible hazardous stumps and transportation to an approved DMS or other designated disposal facility.  "]
[]
[null,null,"24.1 inch to 36 inch diameter",null,{"$f":"INT(0.5*E51)","v":4},{"$f":"D58*E58","v":0}]
[null,null,"37 inch to 48 inch diameter",null,{"$f":"INT(0.5*E52)","v":0},{"$f":"D59*E59","v":0}]
[null,null,"49 inch and larger diameter",null,{"$f":"INT(0.5*E53)","v":0},{"$f":"D60*E60","v":0}]
[null,12,"Removal of Eligible White Goods","$ Per Unit","Estimated Units","Total"]
[null,"Work consists of all labor, equipment, fuel, and associated costs necessary for the collection of eligible white goods, removal of refrigerants, transportation to an approved DMS, decontamination, and transportation to an approved final disposal facility.  "]
[]
[null,null,null,null,{"$f":"Worksheet!D16","v":100},{"$f":"D64*E64","v":0}]
[null,13,"Removal of Eligible Used Electronics","$ Per Unit","Estimated Units","Total"]
[null,"Work consists of all labor, equipment, fuel, and associated costs necessary for the collection of eligible used electronics and transportation to an approved final disposal facility. "]
[]
[null,null,null,null,{"$f":"Worksheet!D17","v":50},{"$f":"D68*E68","v":0}]
[null,14,"Removal of HHW","$ Per Pound","Estimated Units","Total"]
[null,"Work consists of all labor, equipment, fuel, and associated costs necessary for the removal of eligible HHW and transportation to an approved final disposal facility. "]
[]
[null,null,null,null,{"$f":"Worksheet!D18","v":100},{"$f":"D72*E72","v":0}]
[null,15,"Abandoned Eligible Vessel and Vehicle Removal","$ Per Unit","Estimated Units","Total"]
[null,"Work consists of all labor, equipment, fuel, and associated costs necessary for the removal of eligible abandoned vessels and vehicles and transportation to an approved staging area. "]
[]
[null,null,null,null,{"$f":"Worksheet!D19","v":50},{"$f":"D76*E76","v":0}]
[null,16,"Eligible Animal Carcass Removal and Disposal","$ Per Unit","Estimated Units","Total"]
[null,"Work consists of all labor, equipment, fuel, and associated costs necessary for the removal of eligible animal carcasses and transportation to an approved final disposal facility."]
[]
[null,null,null,null,{"$f":"Worksheet!D20","v":100},{"$f":"D80*E80","v":0}]
[]
[null,"Total Estimated Contract Price",null,null,null,{"$f":"SUM(F7:F80)","v":0}]
[]
[null,"(Total Price in words:",null,null,{"$f":"SpellNumber(F82)","v":{"$error":"#NAME?"}},")"]
[]
[null,"Notes:\n[Enter notes as applicable or Erase]"]
[]
[null,null,"Please note if you are using pounds or unit pricing for #16 -Animal Carcass Pricing"]

{"sheet":"Schedule-PDF","index":2,"n_rows":66,"n_cols":6,"rows_kept":66,"cut":false,"hidden":true,"merged":[[58,3,60,3],[58,4,60,4],[58,5,60,5],[59,1,60,2],[54,3,56,3],[54,4,56,4],[54,5,56,5],[55,1,56,2],[50,3,52,3],[50,4,52,4],[50,5,52,5],[51,1,52,2],[32,1,32,5],[44,3,46,3],[44,4,46,4],[44,5,46,5],[45,1,46,2],[36,3,38,3],[36,4,38,4],[36,5,38,5],[37,1,38,2],[26,3,28,3],[26,4,28,4],[26,5,28,5],[27,1,28,2],[22,3,24,3],[22,4,24,4],[22,5,24,5],[23,1,24,2],[2,1,2,5],[10,3,12,3],[10,4,12,4],[10,5,12,5],[11,1,12,2],[6,3,8,3],[6,4,8,4],[6,5,8,5],[7,1,8,2],[15,1,16,2],[18,3,20,3],[18,4,20,4],[18,5,20,5],[19,1,20,2],[14,3,16,3],[14,4,16,4],[14,5,16,5]]}
[]
[]
[null,"SCHEDULE 1 - UNIT RATE PRICE SCHEDULE"]
[]
[null,null,null,"To be Completed By Vendor ▼","To be Completed By End User ▼"]
[]
[null,"1.","ROW Vegetative Debris Removal (Collect & Haul)","$ Per Cubic Yard","Estimated CY","Total"]
[null,"Work consists of pick and transport of vegetative debris on the ROW to an approved TDSRS or other designated disposal facility."]
[]
[null,null,null,"$",null,"$"]
[null,"2.","ROW C&D Debris Removal (Collect & Haul)","$ Per Cubic Yard","Estimated CY","Total"]
[null,"Work consists of pick and transport of C&D debris on the ROW to an approved TDSRS or other designated disposal facility."]
[]
[null,null,null,"$",null,"$"]
[null,"3.","Demolition, Removal and Transport of Structures","$ Per Cubic Yard","Estimated CY","Total"]
[null,"Work consists of all labor, equipment, fuel, and miscellaneous costs necessary to demolish structures on private property."]
[]
[null,null,null,"$",null,"$"]
[null,"4.","TDSR Management and Operations","$ Per Cubic Yard","Estimated CY","Total"]
[null,"Work consists of the management and operation of TDSRS' for acceptance, management, segregation, and staging of disaster related debris. "]
[]
[null,null,null,"$",null,"$"]
[null,"5.","Reduction of Storm Generated Debris by Grinding","$ Per Cubic Yard","Estimated CY","Total"]
[null,"Work consists of all labor, equipment, fuel, and miscellaneous costs necessary to reduce disaster generated debris by grinding. "]
[]
[null,null,null,"$",null,"$"]
[null,"6.","Haul-out of Reduced Debris to Final Disposal Site","$ Per Cubic Yard","Estimated CY","Total"]
[null,"Work consists of pick up and transport of reduced debris at an approved TDSRS to a final disposal facility."]
[]
[null,null,null,"$",null,"$"]
[]
[]
[null,"SCHEDULE 1 - UNIT RATE PRICE SCHEDULE (CONTINUED)"]
[]
[null,null,null,"To be Completed By Vendor ▼","To be Completed By End User ▼"]
[]
[null,"7.","Removal of Hazardous Leaning Trees and Hanging Limbs","$ Per Tree","Estimated Trees","Total"]
[null,"Work consists of removing hazardous leaning or hanging limbs and placing them on the ROW for haul-off.  "]
[]
[null,null,"12 inch to 23.99 inch diameter","$",null,"$"]
[null,null,"24 inch to 35.99 inch diameter","$",null,"$"]
[null,null,"36 inch to 47.99 inch diameter","$",null,"$"]
[null,null,"48 inch and larger diameter","$",null,"$"]
[null,null,"Hanger Removal (per Tree)","$",null,"$"]
[null,"8.","Removal of Hazardous Stumps","$ Per Stump","Estimated Stumps","Total"]
[null,"Work consists of removing hazardous stumps and placing them on the ROW for haul-off.  "]
[]
[null,null,"24 inch to 35.99 inch diameter","$",null,"$"]
[null,null,"36 inch to 47.99 inch diameter","$",null,"$"]
[null,null,"48 inch and larger diameter","$",null,"$"]
[null,"9.","Abandoned Vehicle Removal","$ Per Unit","Estimated Units","Total"]
[null,"Work consists of the removal of abandoned vehicles in areas identified and approved by the City and subsequently transported to a City approved staging area. "]
[]
[null,null,null,"$",null,"$"]
[null,"10.","Animal Carcass Removal and Disposal","$ Per Unit","Estimated Units","Total"]
[null,"Work consists of the removal of animal carcasses in areas identified and approved by the City and subsequently transported to a City approved staging area. "]
[]
[null,null,null,"$",null,"$"]
[null,"11.","ROW White Goods Debris Removal (Collect & Haul)","$ Per Cubic Yard","Estimated CY","Total"]
[null,"Work consists of all labor, equipment, fuel, and miscellaneous costs necessary for removal, transportation, and disposal of White Goods. "]
[]
[null,null,null,"$",null,"$"]
[]
[null,"Total Estimated Contract Price",null,null,null,"$"]
[]
[null,"(Total Price in words:",null,null,null,")"]

{"sheet":"Estimate","index":3,"n_rows":42,"n_cols":12,"rows_kept":42,"cut":false,"hidden":true,"merged":[[0,7,0,9],[6,4,6,9]]}
["Debris Volume Estimate Model"]
[]
[]
[]
[]
[]
[]
[null,null,"Cubic Yardage Estimate"]
[]
[null,null,"Estimated Households",null,null,null,null,null,{"$f":"Worksheet!D6","v":3333.3333333333335}]
[null,null,"Storm Category",null,null,null,null,null,{"$f":"Worksheet!D7","v":3}]
[null,null,"Vegetation Characteristic",null,null,null,null,null,{"$f":"Worksheet!D8","v":"Heavy"}]
[null,null,"Commercial/Industrial Density",null,null,null,null,null,{"$f":"Worksheet!D9","v":"Medium"}]
[null,null,"Storm Precipitation Characteristic",null,null,null,null,null,{"$f":"Worksheet!D10","v":"Medium"}]
[]
[null,null,"Q = H (C)(V)(B)(S)  where:"]
[]
[null,null,"Q =","quantity of debris in cubic yards",null,null,null,null,{"$f":"ROUND(I19*I20*I21*I22*I23,-4)","v":190000}]
[null,null,"H = ","number of households",null,null,null,"=",{"$f":"I10","v":3333.3333333333335}]
[null,null,"C = ","storm category factor in cubic yards",null,null,null,"=",{"$f":"VLOOKUP(I11,'Work Area'!A3:B7,2,FALSE)","v":26}]
[null,null,"V = ","vegetation characteristic multiplier",null,null,null,"=",{"$f":"VLOOKUP(I12,'Work Area'!A12:B14,2,FALSE)","v":1.5}]
[null,null,"B = ","commercial/business/industrial multiplier",null,null,null,"=",{"$f":"VLOOKUP(I13,'Work Area'!A19:B21,2,FALSE)","v":1.2}]
[null,null,"S = ","storm precipitation characteristic multiplier",null,null,null,"=",{"$f":"VLOOKUP(I14,'Work Area'!A26:B28,2,FALSE)","v":1.2}]
[]
[null,null,"Clean Woody Debris",null,null,null,null,null,{"$f":"$I$18*L25","v":142500},null,null,0.75]
[null,null,"Mixed C&D Debris",null,null,null,null,null,{"$f":"$I$18*L26","v":47500},null,null,0.25]
[null,null,"Total Debris",null,null,null,null,null,{"$f":"SUM(I25:I26)","v":190000}]
[]
[]
[null,null,null,null,"Debris Storage Site Requirements"]
[]
[null,null,null,"AC","One Acre",null,null,null,4840,"Square Yards (SY)"]
[null,null,null,20,"Foot Stack Height",null,null,null,{"$f":"D33/3","v":6.666666666666667},"Yards"]
[null,null,null,null,"Volume Per Acre",null,null,null,{"$f":"I32*I33","v":32266.666666666668},"CY/AC"]
[]
[null,null,null,null,"Total Debris Estimate",null,null,null,{"$f":"I27","v":190000}]
[null,null,null,null,"Debris Storage Requirement",null,null,null,{"$f":"I36/I34","v":5.8884297520661155},"AC"]
[null,null,null,null,"Road and Buffer Factor",null,null,null,1.66]
[null,null,null,null,"Estimated Storage Requirements",null,null,null,{"$f":"I37*I38","v":9.7747933884297513},"AC"]
[]
["Notes:"]
["[1] Source: USACE Hurricane Debris Estimating Model."]

{"sheet":"Work Area","index":4,"n_rows":28,"n_cols":2,"rows_kept":28,"cut":false,"hidden":true,"merged":[]}
["Hurricane","Value of \"C\""]
["Category","Factor"]
[1,2]
[2,8]
[3,26]
[4,50]
[5,80]
[]
[]
["Vegetative","Value of \"V\""]
["Cover","Multiplier"]
["Light",1.1000000000000001]
["Medium",1.3]
["Heavy",1.5]
[]
[]
["Commercial","Value of \"B\""]
["Density","Multiplier"]
["Light",1]
["Medium",1.2]
["Heavy",1.3]
[]
[]
["Precipitation","Value of \"S\""]
["Characteristic","Multiplier"]
["Light",1]
["Medium",1.2]
["Heavy",1.3]

{"sheet":"Leaner-Hanger","index":5,"n_rows":48,"n_cols":4,"rows_kept":48,"cut":false,"hidden":true,"merged":[]}
[]
["City of Norman, OK","Quantity","Households","Items per Household"]
[null,null,38834]
["Removal 6\" to 12\"",18,null,{"$f":"B4/$C$3","v":4.6351135602822269E-4}]
["Removal 13\" to 24\"",11,null,{"$f":"B5/$C$3","v":2.8325693979502496E-4}]
["Removal 25\" to 36\"",1,null,{"$f":"B6/$C$3","v":2.5750630890456815E-5}]
["Removal 37\" to 48\"",null,null,{"$f":"B7/$C$12","v":0}]
["Removal 48\" or More",null,null,{"$f":"B8/$C$12","v":0}]
["Limb Removal per tree",23250,null,{"$f":"B9/$C$3","v":0.59870216820312094}]
[]
["City of Springfield, MO","Quantity","Households","Items per Household"]
[null,null,64691]
["Removal 4\" to 12\"",302,null,{"$f":"B13/$C$12","v":4.6683464469555267E-3}]
["Removal 13\" to 24\"",970,null,1.4994357793201527E-2]
["Removal 25\" to 36\"",514,null,7.9454638203150362E-3]
["Removal 37\" to 48\"",67,null,1.0356927547881466E-3]
["Removal 48\" or More",9,null,1.391229073596018E-4]
["Limb Removal per tree",{"$f":"18020+1360+235","v":19615},null,0.30321064753984328]
[]
["Greene County, MO","Quantity","Households","Items per Household"]
[null,null,97859]
["Removal 4\" to 12\"",358,null,{"$f":"B22/$C$21","v":3.6583247325233242E-3}]
["Removal 13\" to 24\"",42,null,4.2918893510050175E-4]
["Removal 25\" to 36\"",7,null,7.1531489183416963E-5]
["Removal 37\" to 48\"",1,null,1.0218784169059566E-5]
["Removal 48\" or More",2,null,2.0437568338119132E-5]
["Limb Removal per tree",{"$f":"50306+2985+573","v":53864},null,0.55042459048222447]
[]
["Town of Tonawanda, NY","Quantity","Households","Items per Household"]
[null,null,26207]
["Removal 24\" - 35.99\"",62,null,{"$f":"B31/$C$30","v":2.3657801350784142E-3}]
["Removal 36\" - 47.99\"",2,null,{"$f":"B32/$C$30","v":7.6315488228335937E-5}]
["Removal 48\" and Larger",1,null,{"$f":"B33/$C$30","v":3.8157744114167969E-5}]
["Limb Removal per tree",12070,null,{"$f":"B34/$C$30","v":0.46056397145800743}]
[]
["Harrison County, MS","Quantity","Households","Items per Household"]
[null,null,71538]
["Tree Removal cut flush",18862,null,{"$f":"B38/$C$37","v":0.26366406664989239}]
["Removal with stump, 6\" or greater",3768,null,{"$f":"B39/$C$37","v":5.2671307556822949E-2}]
["Limb Removal per tree",14922,null,{"$f":"B40/$C$37","v":0.20858844250608069}]
[]
["Average Line Items per Household",null,null,"Items per Household"]
["Removal 4\" to 12\"",null,null,{"$f":"AVERAGE(D4,D13,D22)","v":2.9300608451690246E-3}]
["Removal 13\" to 24\"",null,null,{"$f":"AVERAGE(D5,D14,D23)","v":5.2356012226990184E-3}]
["Removal 25\" to 36\"",null,null,{"$f":"AVERAGE(D6,D15,D24,D31)","v":2.6021315188668312E-3}]
["Removal 37\" to 48\"",null,null,{"$f":"AVERAGE(D25,D16,D32)","v":3.7407567572851408E-4}]
["Removal 49\" or More",null,null,{"$f":"AVERAGE(D17,D26,D33)","v":6.5906073270629637E-5}]
["Limb Removal",null,null,{"$f":"AVERAGE(D9,D18,D27,D34,D40)","v":0.42429796403785536}]